fUSD/lending_fUSD_20260131
["ID","MTS","AMOUNT","RATE_DAILY","PERIOD"]
[404140881,1769871588272,-812.56,0.00043287,120]
[404140882,1769871588329,-500.0,0.00043287,120]
[404140883,1769871588384,-1414.02,0.00043287,120]
[404140884,1769871588437,-896.58,0.00043287,120]
[404140885,1769871588490,-1060.11,0.00043287,120]
[404140886,1769871588548,-607.84,0.00043287,120]
[404140887,1769871588604,-500.0,0.00043287,120]
[404140888,1769871588661,-812.56,0.00043287,120]
[404140889,1769871588716,-1414.02,0.00043287,120]
[404140890,1769871588771,-1060.11,0.00043287,120]
[404140891,1769871588825,-607.84,0.00043287,120]
[404140892,1769871588878,-896.58,0.00043287,120]
[404140893,1769871588932,-500.0,0.00043287,120]
[404140894,1769871588986,-812.56,0.00043287,120]
[404140895,1769871589040,-1414.02,0.00043287,120]
[404140896,1769871589094,-1077.21,0.00043287,120]
[404140897,1769871589146,-1060.1886916,0.00043287,120]
[404140898,1769871589198,-500.0,0.00043287,120]
[404140899,1769871589251,-896.58,0.00043287,120]
[404140900,1769871589304,-812.56,0.00043287,120]
[404140901,1769871589358,-1414.02,0.00043287,120]
[404140902,1769871589412,-607.84,0.00043287,120]
[404140903,1769871589468,-1077.21,0.00043287,120]
[404140904,1769871589524,-500.0,0.00043287,120]
[404140905,1769871589583,-896.58,0.00043287,120]
[404140906,1769871589638,-1414.02,0.00043287,120]
[404140907,1769871589692,-812.56,0.00043287,120]
[404140908,1769871589748,-607.84,0.00043287,120]
[404140909,1769871589805,-1077.21,0.00043287,120]
[404140910,1769871589861,-500.0,0.00043287,120]
[404140911,1769871589914,-1414.02,0.00043287,120]
[404140912,1769871589967,-812.56,0.00043287,120]
[404140913,1769871590026,-896.58,0.00043287,120]
[404140914,1769871590085,-607.84,0.00043287,120]
[404140915,1769871590139,-1077.21,0.00043287,120]
[404140916,1769871590194,-500.0,0.00043287,120]
[404140917,1769871590248,-812.56,0.00043287,120]
[404140918,1769871590302,-896.58,0.00043287,120]
[404140919,1769871590357,-1414.02,0.00043287,120]
[404140920,1769871590409,-500.0,0.00043287,120]
[404140921,1769871590460,-607.84,0.00043287,120]
[404140922,1769871590511,-1077.21,0.00043287,120]
[404140923,1769871590564,-500.0,0.00043287,120]
[404140924,1769871590623,-812.56,0.00043287,120]
[404140925,1769871590676,-1414.02,0.00043287,120]
[404140926,1769871590729,-607.84,0.00043287,120]
[404140927,1769871590782,-1077.21,0.00043287,120]
[404140928,1769871590833,-896.58,0.00043287,120]
[404140929,1769871590886,-500.0,0.00043287,120]
[404140930,1769871590940,-500.0,0.00043287,120]
[404140931,1769871590993,-812.56,0.00043287,120]
[404140932,1769871591044,-1414.02,0.00043287,120]
[404140933,1769871591095,-607.84,0.00043287,120]
[404140934,1769871591144,-896.58,0.00043287,120]
[404140935,1769871591196,-1077.21,0.00043287,120]
[404140936,1769871591247,-500.0,0.00043287,120]
[404140937,1769871591296,-500.0,0.00043287,120]
[404140938,1769871591348,-812.56,0.00043287,120]
[404140939,1769871591402,-1414.02,0.00043287,120]
[404140940,1769871591456,-896.58,0.00043287,120]
[404140941,1769871591516,-1077.21,0.00043287,120]
[404140942,1769871591569,-500.0,0.00043287,120]
[404140943,1769871591628,-500.0,0.00043287,120]
[404140944,1769871591681,-812.56,0.00043287,120]
[404140945,1769871591739,-1414.0607624,0.00043287,120]
[404140946,1769871591792,-607.84,0.00043287,120]
[404140947,1769871591844,-896.7074449,0.00043287,120]
[404140948,1769871591896,-1077.21,0.00043287,120]
[404140949,1769871591947,-500.0,0.00043287,120]
[404140950,1769871591999,-500.0,0.00043287,120]
[404140951,1769871592053,-812.56,0.00043287,120]
[404140952,1769871592107,-607.84,0.00043287,120]
[404140953,1769871592162,-500.0,0.00043287,120]
[404140954,1769871592216,-1077.21,0.00043287,120]
[404140955,1769871592270,-500.0,0.00043287,120]
[404140956,1769871592323,-278.32934614,0.00043287,120]
[404140957,1769871592379,-812.56,0.00043287,120]
[404140958,1769871592439,-607.84,0.00043287,120]
[404140959,1769871592494,-500.0,0.00043287,120]
[404140960,1769871592550,-1077.21,0.00043287,120]
[404140961,1769871592605,-500.0,0.00043287,120]
[404140962,1769871592661,-812.56,0.00043287,120]
[404140963,1769871592715,-607.84,0.00043287,120]
[404140964,1769871592766,-500.0,0.00043287,120]
[404140965,1769871592820,-1077.21,0.00043287,120]
[404140966,1769871592875,-500.0,0.00043287,120]
[404140967,1769871592929,-812.56,0.00043287,120]
[404140968,1769871592982,-607.84,0.00043287,120]
[404140969,1769871593036,-500.0,0.00043287,120]
[404140970,1769871593091,-500.0,0.00043287,120]
[404140971,1769871593145,-1077.21,0.00043287,120]
[404140972,1769871593198,-812.56,0.00043287,120]
[404140973,1769871593448,-607.84,0.00043287,120]
[404140974,1769871593503,-500.0,0.00043287,120]
[404140975,1769871593559,-500.0,0.00043287,120]
[404140976,1769871593615,-1077.21,0.00043287,120]
[404140977,1769871593671,-812.56,0.00043287,120]
[404140978,1769871593728,-500.0,0.00043287,120]
[404140979,1769871593783,-500.0,0.00043287,120]
[404140980,1769871593839,-607.84,0.00043287,120]
[404140981,1769871593896,-1077.21,0.00043287,120]
[404140982,1769871593954,-812.56,0.00043287,120]
[404140983,1769871594008,-500.0,0.00043287,120]
[404140984,1769871594063,-500.0,0.00043287,120]
[404140985,1769871594118,-608.04223903,0.00043287,120]
[404140986,1769871594171,-1077.21,0.00043287,120]
[404140987,1769871594226,-812.56,0.00043287,120]
[404140988,1769871594279,-500.0,0.00043287,120]
[404140989,1769871594331,-500.0,0.00043287,120]
[404140990,1769871594383,-500.0,0.00043287,120]
[404140991,1769871594434,-1077.21,0.00043287,120]
[404140992,1769871594486,-812.56,0.00043287,120]
[404140993,1769871594543,-500.0,0.00043287,120]
[404140994,1769871594596,-500.0,0.00043287,120]
[404140995,1769871594650,-500.0,0.00043287,120]
[404140996,1769871594703,-525.25,0.00043287,120]
[404140997,1769871594759,-812.56,0.00043287,120]
[404140998,1769871594813,-1077.21,0.00043287,120]
[404140999,1769871594870,-500.0,0.00043287,120]
[404141000,1769871594926,-500.0,0.00043287,120]
[404141001,1769871594993,-500.0,0.00043287,120]
[404141002,1769871595049,-525.25,0.00043287,120]
[404141003,1769871595108,-1077.21,0.00043287,120]
[404141004,1769871595164,-812.56,0.00043287,120]
[404141005,1769871595220,-500.0,0.00043287,120]
[404141006,1769871595278,-500.0,0.00043287,120]
[404141007,1769871595334,-500.0,0.00043287,120]
[404141008,1769871595389,-525.25,0.00043287,120]
[404141009,1769871595444,-1077.21,0.00043287,120]
[404141010,1769871595503,-812.56,0.00043287,120]
[404141011,1769871595566,-500.0,0.00043287,120]
[404141012,1769871595628,-500.0,0.00043287,120]
[404141013,1769871595685,-500.0,0.00043287,120]
[404141014,1769871595744,-525.25,0.00043287,120]
[404141015,1769871595801,-1077.21,0.00043287,120]
[404141016,1769871595865,-812.66593053,0.00043287,120]
[404141017,1769871595921,-500.0,0.00043287,120]
[404141018,1769871595977,-661.95,0.00043287,120]
[404141019,1769871596035,-593.62675679,0.00043287,120]
[404141020,1769871596093,-500.0,0.00043287,120]
[404141021,1769871596150,-525.25,0.00043287,120]
[404141022,1769871596210,-1077.21,0.00043287,120]
[404141023,1769871596268,-661.95,0.00043287,120]
[404141024,1769871596327,-500.0,0.00043287,120]
[404141025,1769871596386,-525.25,0.00043287,120]
[404141026,1769871596444,-500.0,0.00043287,120]
[404141027,1769871596501,-1077.21,0.00043287,120]
[404141028,1769871596557,-661.95,0.00043287,120]
[404141029,1769871596618,-500.0,0.00043287,120]
[404141030,1769871596676,-500.0,0.00043287,120]
[404141031,1769871596732,-525.25,0.00043287,120]
[404141032,1769871596794,-500.0,0.00043287,120]
[404141033,1769871596853,-1077.25627178,0.00043287,120]
[404141034,1769871596911,-661.95,0.00043287,120]
[404141035,1769871596969,-500.0,0.00043287,120]
[404141036,1769871597028,-500.0,0.00043287,120]
[404141037,1769871597089,-661.95,0.00043287,120]
[404141038,1769871597149,-525.25,0.00043287,120]
[404141039,1769871597208,-500.0,0.00043287,120]
[404141040,1769871597271,-500.0,0.00043287,120]
[404141041,1769871597329,-500.0,0.00043287,120]
[404141042,1769871597388,-661.95,0.00043287,120]
[404141043,1769871597446,-525.25,0.00043287,120]
[404141044,1769871597507,-500.0,0.00043287,120]
[404141045,1769871597568,-500.0,0.00043287,120]
[404141046,1769871597630,-648.03951171,0.00043287,120]
[404141047,1769871597690,-525.25,0.00043287,120]
[404141048,1769871597750,-661.95,0.00043287,120]
[404141049,1769871597810,-500.0,0.00043287,120]
[404141050,1769871597871,-500.0,0.00043287,120]
[404141051,1769871597929,-525.25,0.00043287,120]
[404141052,1769871597989,-661.95,0.00043287,120]
[404141053,1769871598046,-1147.41,0.00043287,120]
[404141054,1769871598105,-500.0,0.00043287,120]
[404141055,1769871598165,-500.0,0.00043287,120]
[404141056,1769871598221,-661.95,0.00043287,120]
[404141057,1769871598276,-525.25,0.00043287,120]
[404141058,1769871598331,-1147.41,0.00043287,120]
[404141059,1769871598387,-500.0,0.00043287,120]
[404141060,1769871598442,-500.0,0.00043287,120]
[404141061,1769871598496,-525.25,0.00043287,120]
[404141062,1769871598552,-661.95,0.00043287,120]
[404141063,1769871598613,-1147.41,0.00043287,120]
[404141064,1769871598670,-500.0,0.00043287,120]
[404141065,1769871598725,-500.0,0.00043287,120]
[404141066,1769871598784,-525.25,0.00043287,120]
[404141067,1769871598841,-1147.41,0.00043287,120]
[404141068,1769871599220,-661.95,0.00043287,120]
[404141069,1769871599279,-500.0,0.00043287,120]
[404141070,1769871599349,-500.0,0.00043287,120]
[404141071,1769871599410,-525.25,0.00043287,120]
[404141072,1769871599467,-1147.41,0.00043287,120]
[404141073,1769871599527,-661.95,0.00043287,120]
[404141074,1769871599589,-500.0,0.00043287,120]
[404141075,1769871599648,-642.56,0.00043287,120]
[404141076,1769871599705,-525.25,0.00043287,120]
[404141077,1769871599761,-1147.41,0.00043287,120]
[404141078,1769871599820,-661.95,0.00043287,120]
[404141079,1769871599878,-500.0,0.00043287,120]
[404141080,1769871599934,-525.25,0.00043287,120]
[404141081,1769871599988,-661.95,0.00043287,120]
[404141082,1769871600050,-1147.41,0.00043287,120]
[404141083,1769871600112,-525.25,0.00043287,120]
[404141084,1769871600174,-661.95,0.00043287,120]
[404141085,1769871600237,-1147.41,0.00043287,120]
[404141086,1769871600304,-525.25,0.00043287,120]
[404141087,1769871600375,-500.0,0.00043287,120]
[404141088,1769871600438,-661.95,0.00043287,120]
[404141089,1769871600504,-1147.41,0.00043287,120]
[404141090,1769871600567,-525.25,0.00043287,120]
[404141091,1769871600635,-500.0,0.00043287,120]
[404141092,1769871600693,-661.95,0.00043287,120]
[404141093,1769871600751,-1147.41,0.00043287,120]
[404141094,1769871600809,-525.25,0.00043287,120]
[404141095,1769871600867,-500.0,0.00043287,120]
[404141096,1769871600924,-661.95,0.00043287,120]
[404141097,1769871600981,-1147.41,0.00043287,120]
[404141098,1769871601034,-525.25,0.00043287,120]
[404141099,1769871601089,-500.0,0.00043287,120]
[404141100,1769871601143,-661.95,0.00043287,120]
[404141101,1769871601199,-1147.41,0.00043287,120]
[404141102,1769871601254,-525.25,0.00043287,120]
[404141103,1769871601308,-500.0,0.00043287,120]
[404141104,1769871601363,-661.95,0.00043287,120]
[404141105,1769871601418,-500.0,0.00043287,120]
[404141106,1769871601475,-1147.41,0.00043287,120]
[404141107,1769871601532,-525.29064966,0.00043287,120]
[404141108,1769871601596,-500.0,0.00043287,120]
[404141109,1769871601654,-661.95,0.00043287,120]
[404141110,1769871601712,-500.0,0.00043287,120]
[404141111,1769871601773,-1147.41,0.00043287,120]
[404141112,1769871601839,-287.5523899,0.00043287,120]
[404141113,1769871601902,-661.95,0.00043287,120]
[404141114,1769871601963,-500.0,0.00043287,120]
[404141115,1769871602025,-1147.41,0.00043287,120]
[404141116,1769871602084,-694.50405606,0.00043287,30]
[404141117,1769871602143,-261.18506449,0.00043287,30]
[404141118,1769871602201,-208.55410936,0.00043298,120]
[404141119,1769871602261,-1242.686,0.000433,90]
[404141120,1769871602322,-1242.68,0.000433,90]
[404141121,1769871602388,-1288.4473,0.000433,90]
[404141122,1769871602448,-211.6127721,0.000433,50]
[404141123,1769871602508,-150.5,0.000433,120]
[404141124,1769871602574,-150.0,0.00043307,30]
[404141125,1769871602645,-150.0,0.00043307,30]
[404141126,1769871602713,-150.0,0.00043314,120]
[404141127,1769871602786,-150.0,0.00043331,30]
[404141128,1769871602855,-9218.98670773,0.0004335,30]
[404141129,1769871602922,-150.0,0.00043362,120]
[404141130,1769871602986,-150.0,0.00043362,120]
[404141131,1769871603052,-500.0,0.00043369,60]
[404141132,1769871603122,-150.0,0.00043377,120]
[404141133,1769871603192,-150.0,0.00043394,30]
[404141134,1769871603259,-698.36,0.00043397,120]
[404141135,1769871603344,-500.0,0.00043397,120]
[404141136,1769871603427,-873.20360467,0.000434,120]
[404141137,1769871603491,-1493.03780042,0.000434,120]
[404141138,1769871603558,-159.83,0.000434,30]
[404141139,1769871603623,-1580.04,0.000434,30]
[404141140,1769871603688,-150.0,0.00043413,30]
[404141141,1769871603756,-50000.0,0.00043459,50]
[404141142,1769871603826,-50000.0,0.00043459,51]
[404141143,1769871603898,-50000.0,0.00043459,52]
[404141144,1769871603970,-50000.0,0.00043459,53]
[404141145,1769871604043,-50000.0,0.00043459,54]
[404141146,1769871604114,-50000.0,0.00043459,55]
[404141147,1769871604179,-970.66,0.0004346,30]
[404141148,1769871604244,-483.05,0.0004346,30]
[404141149,1769871604308,-964.02,0.0004346,30]
[404141150,1769871604377,-483.05,0.0004346,30]
[404141151,1769871604441,-657.71,0.0004346,30]
[404141152,1769871604505,-483.05,0.0004346,30]
[404141153,1769871604570,-494.13,0.0004346,30]
[404141154,1769871604639,-483.05,0.0004346,30]
[404141155,1769871604704,-285.33,0.0004346,30]
[404141156,1769871604768,-33922.58180238,0.0004346,30]
[404141157,1769871604835,-33922.58180238,0.0004346,30]
[404141158,1769871604908,-33922.58180238,0.0004346,30]
[404141159,1769871604978,-33922.58180238,0.0004346,30]
[404141160,1769871605042,-437.06583689,0.0004346,60]
[404141161,1769871605126,-788.07778091,0.0004346,30]
[404141162,1769871605188,-280.31,0.000435,36]
[404141163,1769871605466,-500.0,0.000435,120]
[404141164,1769871605535,-150.0,0.00043518,30]
[404141165,1769871605607,-698.36,0.00043534,120]
[404141166,1769871605674,-500.0,0.00043534,120]
[404141167,1769871605743,-17101.0,0.00043579,120]
[404141168,1769871605807,-2866.869,0.000436,90]
[404141169,1769871605871,-2866.869,0.000436,90]
[404141170,1769871605937,-2866.87,0.000436,90]
[404141171,1769871606003,-509.14,0.000436,120]
[404141172,1769871606066,-574.42,0.000436,120]
[404141173,1769871606128,-239.85,0.000436,68]
[404141174,1769871606191,-2069.84,0.000436,120]
[404141175,1769871606252,-1424.553,0.000436,90]
[404141176,1769871606313,-1424.553,0.000436,90]
[404141177,1769871606375,-1424.55,0.000436,90]
[404141179,1769871606434,-517.48,0.000436,120]
[404141180,1769871606496,-574.42,0.000436,120]
[404141181,1769871606560,-253.0,0.000436,43]
[404141182,1769871606623,-431.39473,0.000436,42]
[404141183,1769871606684,-250.0,0.00043601,30]
[404141184,1769871606745,-250.0,0.00043601,37]
[404141185,1769871606807,-250.0,0.00043601,46]
[404141186,1769871606869,-250.0,0.00043601,47]
[404141187,1769871606933,-250.0,0.00043601,60]
[404141188,1769871606995,-250.0,0.00043601,88]
[404141189,1769871607057,-250.0,0.00043601,89]
[404141190,1769871607115,-203.47822085,0.00043601,120]
[404141191,1769871607175,-3322.0,0.00043601,30]
[404141192,1769871607235,-3322.0,0.00043601,37]
[404141193,1769871607294,-3322.0,0.00043601,46]
[404141194,1769871607356,-1453.02051936,0.00043601,47]
[404141195,1769871607416,-419.0,0.00043601,30]
[404141196,1769871607475,-419.0,0.00043601,37]
[404141197,1769871607535,-419.0,0.00043601,46]
[404141198,1769871607601,-419.0,0.00043601,47]
[404141199,1769871607662,-419.0,0.00043601,60]
[404141200,1769871607721,-419.0,0.00043601,88]
[404141201,1769871607781,-419.0,0.00043601,89]
[404141202,1769871607842,-424.08531241,0.00043601,120]
[404141203,1769871607904,-8898.0,0.00043605,30]
[404141204,1769871607963,-161.25,0.00043619,120]
[404141205,1769871608024,-694.50405606,0.00043619,30]
[404141206,1769871608090,-694.50405606,0.00043619,30]
[404141207,1769871608153,-261.18506449,0.00043619,30]
[404141208,1769871608214,-261.18506449,0.00043619,30]
[404141209,1769871608274,-600.0,0.00043642,30]
[404141210,1769871608332,-151.0,0.00043642,30]
[404141211,1769871608396,-500.0,0.00043642,30]
[404141212,1769871608455,-2000.0,0.00043642,30]
[404141213,1769871608513,-262.86308916,0.00043642,30]
[404141214,1769871608580,-200.0,0.00043642,30]
[404141215,1769871608644,-600.0,0.00043642,42]
[404141216,1769871608704,-151.0,0.00043642,42]
[404141217,1769871608762,-250.0,0.00043642,30]
[404141218,1769871608822,-500.0,0.00043642,42]
[404141219,1769871608884,-2000.0,0.00043642,42]
[404141220,1769871608944,-250.0,0.00043642,30]
[404141221,1769871609006,-151.0,0.00043642,30]
[404141222,1769871609064,-220.0,0.00043642,30]
[404141223,1769871609123,-300.0,0.00043642,30]
[404141224,1769871609182,-600.0,0.00043642,43]
[404141225,1769871609241,-207.4,0.00043642,42]
[404141226,1769871609298,-151.0,0.00043642,43]
[404141227,1769871609354,-250.0,0.00043642,42]
[404141228,1769871609409,-500.0,0.00043642,43]
[404141229,1769871609469,-2000.0,0.00043642,43]
[404141230,1769871609526,-156.587,0.00043642,42]
[404141231,1769871609593,-311.10000001,0.00043642,42]
[404141232,1769871609655,-220.0,0.00043642,42]
[404141233,1769871609714,-250.0,0.00043642,42]
[404141234,1769871609770,-600.0,0.00043642,44]
[404141235,1769871609828,-275.44549751,0.00043642,44]
[404141236,1769871609889,-215.0738,0.00043642,43]
[404141237,1769871609947,-250.0,0.00043642,43]
[404141238,1769871610005,-500.0,0.00043642,44]
[404141239,1769871610066,-162.380719,0.00043642,43]
[404141240,1769871610129,-220.0,0.00043642,43]
[404141241,1769871610194,-223.0315306,0.00043642,44]
[404141242,1769871610252,-600.0,0.00043642,45]
[404141244,1769871610313,-2000.0,0.00043642,44]
[404141245,1769871610371,-500.0,0.00043642,45]
[404141246,1769871610431,-250.0,0.00043642,43]
[404141247,1769871610489,-168.3888056,0.00043642,44]
[404141248,1769871610550,-220.0,0.00043642,44]
[404141249,1769871610611,-250.0,0.00043642,44]
[404141250,1769871610669,-350.69157239,0.00043642,45]
[404141251,1769871610728,-600.0,0.00043642,46]
[404141252,1769871610790,-500.0,0.00043642,46]
[404141253,1769871610850,-250.0,0.00043642,45]
[404141254,1769871610909,-600.0,0.00043642,47]
[404141255,1769871610969,-2000.0,0.00043642,45]
[404141256,1769871611026,-500.0,0.00043642,47]
[404141257,1769871611083,-220.0,0.00043642,45]
[404141258,1769871611144,-250.0,0.00043642,46]
[404141259,1769871611375,-600.0,0.00043642,48]
[404141260,1769871611436,-2000.0,0.00043642,46]
[404141261,1769871611505,-500.0,0.00043642,48]
[404141262,1769871611567,-220.0,0.00043642,46]
[404141263,1769871611626,-250.0,0.00043642,47]
[404141264,1769871611688,-600.0,0.00043642,49]
[404141265,1769871611748,-2000.0,0.00043642,47]
[404141266,1769871611812,-895.23199988,0.00043642,30]
[404141267,1769871611878,-3000.0,0.00043642,30]
[404141268,1769871611937,-500.0,0.00043642,30]
[404141269,1769871611997,-500.0,0.00043642,49]
[404141270,1769871612054,-220.0,0.00043642,47]
[404141271,1769871612111,-250.0,0.00043642,48]
[404141272,1769871612168,-600.0,0.00043642,60]
[404141273,1769871612226,-3000.0,0.00043642,42]
[404141274,1769871612287,-2000.0,0.00043642,48]
[404141275,1769871612348,-220.0,0.00043642,48]
[404141276,1769871612406,-160.0,0.00043642,30]
[404141277,1769871612463,-250.0,0.00043642,49]
[404141278,1769871612521,-518.5,0.00043642,42]
[404141279,1769871612580,-151.0,0.00043642,30]
[404141280,1769871612643,-3000.0,0.00043642,43]
[404141281,1769871612700,-293.14,0.00043642,49]
[404141282,1769871612758,-160.0,0.00043642,42]
[404141283,1769871612815,-2000.0,0.00043642,49]
[404141284,1769871612873,-250.0,0.00043642,60]
[404141285,1769871612929,-537.6845,0.00043642,43]
[404141286,1769871612985,-151.0,0.00043642,42]
[404141287,1769871613041,-3000.0,0.00043642,44]
[404141288,1769871613098,-250.0,0.00043642,44]
[404141289,1769871613152,-160.0,0.00043642,43]
[404141290,1769871613207,-557.5788265,0.00043642,44]
[404141291,1769871613263,-250.0,0.00043642,89]
[404141292,1769871613322,-151.0,0.00043642,43]
[404141293,1769871613379,-3000.0,0.00043642,45]
[404141294,1769871613434,-250.0,0.00043642,45]
[404141295,1769871613490,-160.0,0.00043642,44]
[404141296,1769871613548,-250.0,0.00043642,120]
[404141297,1769871613609,-151.0,0.00043642,44]
[404141298,1769871613666,-3000.0,0.00043642,46]
[404141299,1769871613721,-250.0,0.00043642,46]
[404141300,1769871613780,-160.0,0.00043642,45]
[404141301,1769871613838,-151.0,0.00043642,45]
[404141302,1769871613901,-500.0,0.00043642,30]
[404141303,1769871613958,-2188.44391912,0.00043642,47]
[404141304,1769871614014,-250.0,0.00043642,47]
[404141305,1769871614071,-160.0,0.00043642,46]
[404141306,1769871614129,-500.0,0.00043642,42]
[404141307,1769871614185,-151.0,0.00043642,46]
[404141308,1769871614243,-250.0,0.00043642,48]
[404141309,1769871614302,-160.0,0.00043642,47]
[404141310,1769871614359,-500.0,0.00043642,43]
[404141311,1769871614417,-151.0,0.00043642,47]
[404141312,1769871614475,-250.0,0.00043642,49]
[404141313,1769871614535,-151.0,0.00043642,30]
[404141314,1769871614598,-160.0,0.00043642,48]
[404141315,1769871614655,-500.0,0.00043642,30]
[404141316,1769871614714,-500.0,0.00043642,44]
[404141317,1769871614777,-151.0,0.00043642,48]
[404141318,1769871614836,-156.587,0.00043642,42]
[404141319,1769871614898,-160.53256926,0.00043642,49]
[404141320,1769871614957,-500.0,0.00043642,45]
[404141321,1769871615014,-500.0,0.00043642,42]
[404141322,1769871615073,-151.0,0.00043642,49]
[404141323,1769871615131,-1000.0,0.00043642,30]
[404141324,1769871615187,-162.380719,0.00043642,43]
[404141325,1769871615244,-500.0,0.00043642,43]
[404141326,1769871615301,-500.0,0.00043642,46]
[404141327,1769871615358,-1000.0,0.00043642,42]
[404141328,1769871615414,-168.3888056,0.00043642,44]
[404141329,1769871615474,-500.0,0.00043642,44]
[404141330,1769871615532,-500.0,0.00043642,47]
[404141331,1769871615597,-1000.0,0.00043642,43]
[404141332,1769871615655,-301.7836222,0.00043642,45]
[404141333,1769871615715,-500.0,0.00043642,48]
[404141334,1769871615773,-500.0,0.00043642,45]
[404141335,1769871615831,-151.0,0.00043642,30]
[404141336,1769871615893,-1000.0,0.00043642,44]
[404141337,1769871615951,-500.0,0.00043642,30]
[404141338,1769871616007,-500.0,0.00043642,46]
[404141339,1769871616063,-156.587,0.00043642,42]
[404141340,1769871616120,-1000.0,0.00043642,45]
[404141341,1769871616183,-500.0,0.00043642,49]
[404141342,1769871616242,-500.0,0.00043642,42]
[404141343,1769871616299,-500.0,0.00043642,47]
[404141344,1769871616359,-3322.0,0.00043642,30]
[404141345,1769871616417,-162.380719,0.00043642,43]
[404141346,1769871616476,-1000.0,0.00043642,46]
[404141347,1769871616536,-500.0,0.00043642,43]
[404141348,1769871616601,-500.0,0.00043642,48]
[404141349,1769871616665,-3322.0,0.00043642,42]
[404141350,1769871616726,-168.3888056,0.00043642,44]
[404141351,1769871616787,-1000.0,0.00043642,47]
[404141352,1769871616853,-500.0,0.00043642,44]
[404141353,1769871616917,-3322.0,0.00043642,43]
[404141354,1769871616982,-174.61919141,0.00043642,45]
[404141355,1769871617328,-500.0,0.00043642,49]
[404141356,1769871617391,-1000.0,0.00043642,48]
[404141357,1769871617452,-500.0,0.00043642,45]
[404141358,1769871617515,-3322.0,0.00043642,44]
[404141359,1769871617575,-181.08010149,0.00043642,46]
[404141360,1769871617640,-3322.0,0.00043642,45]
[404141361,1769871617701,-187.78006525,0.00043642,47]
[404141362,1769871617763,-1000.0,0.00043642,30]
[404141363,1769871617825,-3322.0,0.00043642,46]
[404141364,1769871617885,-194.72792766,0.00043642,48]
[404141365,1769871617947,-1000.0,0.00043642,42]
[404141366,1769871618008,-3322.0,0.00043642,47]
[404141367,1769871618081,-201.93286098,0.00043642,49]
[404141368,1769871618145,-1000.0,0.00043642,43]
[404141369,1769871618204,-3322.0,0.00043642,48]
[404141370,1769871618261,-419.0,0.00043642,30]
[404141371,1769871618322,-1000.0,0.00043642,44]
[404141372,1769871618383,-1030.0,0.00043642,30]
[404141373,1769871618443,-3322.0,0.00043642,49]
[404141374,1769871618501,-419.0,0.00043642,42]
[404141375,1769871618561,-520.0,0.00043642,30]
[404141376,1769871618623,-1000.0,0.00043642,30]
[404141377,1769871618684,-1000.0,0.00043642,45]
[404141378,1769871618746,-1068.11,0.00043642,42]
[404141379,1769871618806,-3322.0,0.00043642,60]
[404141380,1769871618867,-419.0,0.00043642,43]
[404141381,1769871618933,-539.24,0.00043642,42]
[404141382,1769871618995,-1000.0,0.00043642,42]